bitfinex/quotes_ETHUSD_20250106
["timestamp","ask_amount","ask_price","bid_price","bid_amount"]
[1736163743058,0.0510396,3654.2,3653.7,2.73692]
[1736163744425,2.55165664,3654.3,3653.7,2.73692]
[1736163744661,2.55165664,3654.3,3653.5,2.73708]
[1736163744662,0.05098767,3654.1,3653.5,2.73708]
[1736163744860,0.117,3654.0,3653.5,2.73708]
[1736163745161,0.16458981,3654.0,3653.5,2.73708]
[1736163745467,0.16129688,3654.0,3653.2,0.755]
[1736163745825,0.16129688,3654.0,3653.5,2.73704]
[1736163746368,0.16129688,3654.0,3653.6,2.737]
[1736163748541,0.43980624,3654.0,3653.2,0.755]
[1736163748735,0.43980624,3654.0,3653.1,0.005]
[1736163748939,0.43980624,3654.0,3653.1,2.74237]
[1736163749152,0.3063603,3653.9,3653.1,2.74237]
[1736163749461,2.62379672,3653.8,3653.2,2.73731]
[1736163749829,0.04718851,3653.7,3653.2,2.73731]
[1736163750230,0.04718851,3653.7,3653.3,2.73721]
[1736163750673,0.3063603,3653.9,3653.3,2.73721]
[1736163750830,0.04713656,3653.6,3653.4,2.73717]
[1736163751030,0.39221643,3654.0,3653.4,2.73717]
[1736163751234,0.04708462,3653.5,3653.4,2.73717]
[1736163751436,0.11370707,3654.0,3653.4,2.73717]
[1736163751979,0.04723078,3653.9,3653.4,2.73717]
[1736163753484,0.32570424,3653.9,3653.4,2.73717]
[1736163754083,0.04723078,3653.9,3653.5,0.8238]
[1736163754443,0.04723078,3653.9,3653.5,3.56084]
[1736163756676,0.04723078,3653.9,3653.5,2.73704]
[1736163759318,0.04723078,3653.9,3653.3,2.73724]
[1736163761316,2.62379672,3653.8,3653.3,2.73724]
[1736163761511,0.04707117,3653.7,3653.3,2.73724]
[1736163761672,2.62379672,3653.8,3653.3,2.73724]
[1736163761883,0.04707253,3653.7,3653.3,2.73724]
[1736163762220,2.62379672,3653.8,3653.3,2.73724]
[1736163762423,0.04702059,3653.6,3653.3,2.73724]
[1736163762552,0.04707253,3653.7,3653.3,2.73724]
[1736163762899,2.62379672,3653.8,3653.3,2.73724]
[1736163763403,0.04707253,3653.7,3653.3,2.73724]
[1736163763606,0.11370707,3654.0,3653.3,2.73724]
[1736163763769,0.04700146,3653.6,3653.3,2.73724]
[1736163763965,0.11370707,3654.0,3653.3,0.350154]
[1736163764207,0.11370707,3654.0,3653.5,2.73709]
[1736163765307,0.04708078,3653.9,3653.5,2.73709]
[1736163768058,0.04708078,3653.9,3653.1,0.005]
[1736163768262,0.04708078,3653.9,3653.3,2.73719]
[1736163769610,0.04708078,3653.9,3653.3,2.73718]
[1736163770393,0.04708078,3653.9,3653.4,2.73714]
[1736163770596,1.30867696,3653.9,3653.5,2.73703]
[1736163770824,1.19267696,3653.9,3653.5,1.059003]
[1736163770962,1.19267696,3653.9,3653.8,2.73687]
[1736163771462,0.04708078,3653.9,3653.8,2.73687]
[1736163773112,0.116,3654.1,3653.8,2.73687]
[1736163773610,0.04708925,3654.0,3653.8,2.73687]
[1736163778620,0.04708925,3654.0,3653.6,2.73696]
[1736163779323,0.04708925,3654.0,3653.7,2.73692]
[1736163782388,1.26159618,3654.1,3653.7,2.73692]
[1736163782590,0.0472354,3653.9,3653.7,2.73692]
[1736163782790,1.26159618,3654.1,3653.7,2.73692]
[1736163782992,0.04725092,3653.8,3653.7,2.73692]
[1736163783210,1.26159618,3654.1,3653.7,2.73692]
[1736163783419,0.04721349,3653.8,3653.7,2.73692]
[1736163783731,0.04717742,3653.8,3653.7,2.73692]
[1736163784036,1.26159618,3654.1,3653.7,2.73692]
[1736163784496,0.04735479,3654.0,3653.7,2.73692]
[1736163788444,0.04735479,3654.0,3653.8,2.73687]
[1736163789095,1.2349994,3654.0,3653.6,2.73698]
[1736163789293,0.04735479,3654.0,3653.6,2.73698]
[1736163789658,1.19295097,3654.0,3653.9,3.5408]
[1736163791238,0.04735479,3654.0,3653.9,3.5408]
[1736163791535,1.14559618,3654.5,3653.9,0.804]
[1736163791744,1.14559618,3654.5,3654.1,2.73661]
[1736163791897,0.04743247,3654.4,3654.1,2.73661]
[1736163792636,0.04743247,3654.4,3654.2,2.73654]
[1736163793003,0.04743247,3654.4,3654.3,2.7365]
[1736163793940,1.26159618,3654.7,3654.3,2.7365]
[1736163794146,0.04767535,3654.4,3654.3,2.7365]
[1736163794346,1.26159618,3654.7,3654.3,2.7365]
[1736163794522,0.04764619,3654.4,3654.3,2.7365]
[1736163794703,1.26159618,3654.7,3654.3,2.7365]
[1736163795003,0.04775005,3654.6,3654.1,2.73662]
[1736163797446,0.04775005,3654.6,3654.2,2.73651]
[1736163805837,0.04775005,3654.6,3654.3,2.73648]
[1736163806454,0.04775005,3654.6,3654.4,2.7364]
[1736163807862,0.04775005,3654.6,3654.4,3.5312]
[1736163809305,0.04775005,3654.6,3654.4,0.7948]
[1736163809501,0.04775005,3654.6,3654.5,2.73635]
[1736163810584,0.116,3655.0,3654.5,2.73635]
[1736163810852,0.04778889,3654.6,3654.5,2.73635]
[1736163811039,1.18718757,3654.8,3654.5,2.73635]
[1736163811209,0.04778889,3654.6,3654.5,2.73635]
[1736163811408,1.18718757,3654.8,3654.5,2.73635]
[1736163811611,0.04788667,3654.6,3654.5,3.089465]
[1736163811921,1.14559618,3655.1,3654.7,2.73612]
[1736163812468,2.44878375,3655.2,3654.7,2.73612]
[1736163813115,1.18718757,3655.0,3654.7,2.73612]
[1736163813624,0.04635698,3654.9,3654.7,2.73612]
[1736163815955,0.04635698,3654.9,3654.5,2.73631]
[1736163816113,1.18718757,3654.8,3654.5,2.73631]
[1736163816314,0.04633382,3654.7,3654.3,2.73646]
[1736163816510,1.18718757,3654.6,3654.3,2.73646]
[1736163817146,1.18718757,3654.8,3654.3,2.73646]
[1736163817360,0.04633382,3654.7,3654.3,2.73646]
[1736163817534,1.18718757,3654.8,3654.3,2.73646]
[1736163817718,1.18718757,3654.6,3654.3,2.73646]
[1736163818064,0.04622997,3654.5,3654.3,2.73646]
[1736163819828,0.04622997,3654.5,3654.1,0.8077]
[1736163820032,1.18718757,3654.8,3654.4,2.73642]
[1736163820530,1.18718757,3654.6,3654.2,2.73654]
[1736163820744,1.18718757,3654.6,3653.7,2.73689]
[1736163820745,0.04624826,3654.5,3654.0,2.73671]
[1736163820943,1.18718757,3654.4,3654.0,2.73671]
[1736163821275,1.18718757,3654.2,3653.8,0.7984]
[1736163821482,1.18718757,3654.2,3653.9,2.73675]
[1736163821847,1.18718757,3654.2,3654.0,2.73672]
[1736163822027,1.14559618,3655.0,3654.1,2.73665]
[1736163822028,1.18718757,3654.4,3654.1,2.73665]
[1736163822230,1.18718757,3654.6,3653.8,3.53524]
[1736163822430,0.04612611,3654.3,3654.2,2.73651]
[1736163822730,1.18718757,3654.6,3654.3,2.73647]
[1736163822731,2.33278375,3654.6,3654.3,2.73647]
[1736163822952,0.04618267,3654.5,3654.3,2.73647]
[1736163823680,0.04618267,3654.5,3654.3,3.49797]
[1736163825018,0.04618267,3654.5,3654.4,2.73642]
[1736163825218,0.04618267,3654.5,3654.4,3.29720247]
[1736163825412,0.04618267,3654.5,3654.4,3.73642]
[1736163825631,0.116,3654.7,3654.4,3.73642]
[1736163825816,0.04644777,3654.5,3654.4,3.73642]
[1736163826017,0.116,3654.7,3654.4,3.73642]
[1736163826315,0.04644777,3654.5,3654.4,3.73642]
[1736163826623,0.04618777,3654.5,3654.4,3.73642]
[1736163827120,0.116,3654.7,3654.5,2.73635]
[1736163827698,0.116,3654.9,3654.5,2.73635]
[1736163828097,0.04663331,3654.8,3654.5,2.73635]
[1736163830265,0.04663331,3654.8,3654.7,2.7362]
[1736163831704,1.18718757,3655.0,3654.7,2.7362]
[1736163831866,0.04655299,3654.8,3654.7,2.7362]
[1736163832374,1.18718757,3655.0,3654.7,2.7362]
[1736163832700,0.04655299,3654.8,3654.7,2.7362]
[1736163832891,1.18718757,3655.0,3654.7,2.7362]
[1736163833092,0.04655299,3654.8,3654.7,2.7362]
[1736163833865,1.37933674,3655.0,3654.7,2.7362]
[1736163834070,0.04498146,3654.8,3654.7,2.7362]
[1736163834271,1.37933674,3655.0,3654.7,2.7362]
[1736163834480,0.04496171,3654.8,3654.7,2.7362]
[1736163834682,1.37933674,3655.0,3654.5,2.73633]
[1736163834970,0.04501361,3654.9,3654.5,2.73633]
[1736163835410,0.04501361,3654.9,3654.3,0.7615]
[1736163835610,0.04501361,3654.9,3654.5,2.73629]
[1736163835786,1.19060979,3654.9,3654.5,2.73629]
[1736163836685,1.19060979,3654.9,3654.6,2.73627]
[1736163842298,1.18718757,3654.8,3654.3,0.7615]
[1736163842505,1.18718757,3654.6,3654.4,2.73639]
[1736163842904,0.04496201,3654.5,3654.4,2.73639]
[1736163843313,1.18718757,3654.8,3654.4,2.73639]
[1736163843639,1.6041245,3654.8,3654.4,2.73639]
[1736163843809,0.04506584,3654.7,3654.4,2.73639]
[1736163844237,1.18718757,3654.8,3654.4,2.73639]
[1736163844534,2.33278375,3654.8,3654.4,2.73639]
[1736163844913,0.04506584,3654.7,3654.4,2.73639]
[1736163845239,2.33278375,3654.8,3654.4,2.73639]
[1736163845439,1.23219249,3654.6,3654.2,2.73654]
[1736163845645,1.18718757,3654.6,3654.2,2.73654]
[1736163845805,0.04491349,3654.5,3654.2,2.73654]
[1736163846747,1.19050967,3654.5,3654.2,2.73654]
[1736163847239,1.18718757,3654.4,3654.0,2.73669]
[1736163847442,1.18718757,3654.4,3653.8,3.49981]
[1736163847648,0.04471024,3654.3,3653.9,2.73677]
[1736163848106,0.04471024,3654.3,3653.8,0.763]
[1736163848306,0.04471024,3654.3,3654.1,2.73664]
[1736163848641,1.14559618,3654.5,3654.1,2.73664]
[1736163848843,0.04472659,3654.2,3654.1,2.73664]
[1736163849040,1.14559618,3654.4,3654.1,2.73664]
[1736163849347,0.04472659,3654.2,3654.1,2.73664]
[1736163849859,1.14559618,3654.4,3654.3,2.7365]
[1736163850011,1.14559618,3654.6,3654.3,2.7365]
[1736163850350,2.33278375,3654.6,3654.1,2.68662]
[1736163851105,1.18718757,3654.6,3654.1,2.68662]
[1736163852251,1.14559618,3654.5,3653.8,3.49982]
[1736163852454,1.14559618,3654.5,3654.3,2.73649]
[1736163852770,1.14559618,3654.5,3654.3,3.55309]
[1736163853113,0.04477242,3654.4,3654.3,3.55309]
[1736163853449,1.18718757,3654.6,3654.4,2.73642]
[1736163855181,2.33278375,3654.6,3654.4,2.73642]
[1736163856579,0.04493305,3654.5,3654.4,2.73642]
[1736163860486,0.04493305,3654.5,3654.0,0.7737]
[1736163860780,2.33278375,3654.6,3654.2,2.73655]
[1736163861149,2.33278375,3654.6,3654.3,2.73647]
[1736163861530,0.04493305,3654.5,3654.3,2.73647]
[1736163862190,0.04493305,3654.5,3654.4,2.73642]
[1736163864177,0.04493305,3654.5,3654.4,35.0]
[1736163864592,1.14559618,3654.6,3654.4,35.0]
[1736163866688,1.14559618,3654.7,3654.4,35.0]
[1736163867069,1.23214183,3654.6,3654.2,2.73655]
[1736163868289,2.37773801,3654.6,3654.2,2.73655]
[1736163868523,2.37773801,3654.6,3654.3,35.0]
[1736163868877,1.18718757,3654.4,3654.3,35.0]
[1736163869393,1.23199849,3654.4,3654.3,35.0]
[1736163869592,0.04481092,3654.4,3654.3,37.7365]
[1736163871619,1.14559618,3654.6,3654.3,37.7365]
[1736163871916,0.04480732,3654.4,3654.3,37.7365]
[1736163872136,1.14559618,3654.6,3654.3,37.7365]
[1736163872322,0.04480732,3654.4,3654.3,37.7365]
[1736163872495,1.14559618,3654.6,3654.5,2.73635]
[1736163872907,1.1905657,3654.6,3654.5,2.73635]
[1736163873529,0.04496952,3654.6,3654.5,2.73635]
[1736163875740,0.04496952,3654.6,3654.3,2.73647]
[1736163876171,0.04496952,3654.6,3654.5,2.73635]
[1736163876331,0.04496952,3654.6,3654.5,3.54255]
[1736163876531,1.14559618,3654.7,3654.6,2.73627]
[1736163877243,1.18718757,3654.7,3654.5,0.8062]
[1736163877443,1.18718757,3654.7,3654.5,2.73635]
[1736163877669,1.18718757,3654.7,3654.4,35.0]
[1736163877670,1.14559618,3654.8,3654.7,2.7362]
[1736163879370,1.19062669,3654.8,3654.7,2.7362]
[1736163879794,1.19062669,3654.8,3654.4,37.73635]
[1736163880106,2.44878375,3654.9,3654.5,2.73629]
[1736163880276,0.0449786,3654.7,3654.6,2.73627]
[1736163880665,2.44878375,3654.9,3654.6,2.73627]
[1736163881207,1.19062669,3654.8,3654.4,35.0]
[1736163881380,1.19062669,3654.8,3654.7,2.7362]
[1736163881578,1.14559618,3654.8,3654.7,2.7362]
[1736163883014,2.44878375,3654.9,3654.7,2.7362]
[1736163883444,0.04515034,3654.8,3654.7,2.7362]
[1736163883709,0.04515034,3654.8,3654.5,2.73631]
[1736163884250,1.14559618,3654.8,3654.5,2.73631]
[1736163884539,0.04509844,3654.7,3654.5,2.73631]
[1736163884696,1.18718757,3654.7,3654.4,35.0]
[1736163884910,0.04504653,3654.6,3654.4,35.0]
[1736163885279,1.18718757,3654.7,3654.4,35.0]
[1736163885639,0.04499461,3654.5,3654.4,35.0]
[1736163885833,1.18718757,3654.7,3654.4,35.0]
[1736163885996,0.04504653,3654.6,3654.4,35.0]
[1736163886203,0.04504653,3654.6,3654.4,37.73642]
[1736163886398,1.14559618,3654.8,3654.4,37.73642]
[1736163886595,1.30318757,3654.9,3654.4,37.73642]
[1736163886596,1.14559618,3654.7,3654.4,37.73642]
[1736163886793,0.04499461,3654.5,3654.4,37.73642]
[1736163887026,1.14559618,3654.7,3654.4,37.73642]
[1736163887254,0.04499461,3654.5,3654.4,37.73642]
[1736163887379,1.14559618,3654.7,3654.4,37.73642]
[1736163887578,0.04504653,3654.6,3654.4,37.73642]
[1736163889281,0.04504653,3654.6,3654.5,2.73635]
[1736163890721,1.14559618,3654.7,3654.5,2.73635]
[1736163890936,0.04504653,3654.6,3654.5,2.73635]
[1736163891113,1.14559618,3654.7,3654.5,2.73635]
[1736163891290,0.04504653,3654.6,3654.5,2.73635]
[1736163894730,0.04504653,3654.6,3654.3,2.73646]
[1736163894887,0.04504653,3654.6,3654.5,35.0]
[1736163895789,2.33278375,3654.7,3654.5,35.0]
[1736163896137,0.04503754,3654.6,3654.5,35.0]
[1736163896429,2.33278375,3654.7,3654.5,35.0]
[1736163896787,0.04503754,3654.6,3654.5,35.0]
[1736163897127,2.33278375,3654.7,3654.5,35.0]
[1736163897325,0.04503754,3654.6,3654.5,35.0]
[1736163897494,2.33278375,3654.7,3654.5,35.0]
[1736163897850,0.04503754,3654.6,3654.5,35.0]
[1736163898008,0.04503754,3654.6,3654.5,37.73635]
[1736163898328,1.14559618,3654.7,3654.5,37.73635]
[1736163902309,0.0449908,3654.6,3654.5,35.0]
[1736163902537,0.42143601,3654.6,3654.5,35.0]
[1736163902703,0.42143601,3654.6,3654.0,3.87212035]
[1736163903054,1.18718757,3654.4,3654.1,2.73663]
[1736163903341,0.04482418,3654.3,3654.2,2.73655]
[1736163903550,1.14559618,3654.6,3654.2,2.73655]
[1736163903718,1.14559618,3654.6,3654.4,0.8235]
[1736163903921,0.04497651,3654.5,3654.4,3.55989]
[1736163904732,1.19057269,3654.5,3654.4,3.55989]
[1736163907414,0.04497651,3654.5,3654.4,3.55989]
[1736163907612,0.04497651,3654.5,3654.0,2.73669]
[1736163907883,1.14559618,3654.7,3654.2,2.73653]
[1736163908046,0.04489563,3654.4,3654.2,2.73653]
[1736163908453,1.18718757,3654.4,3654.1,35.0]
[1736163908656,1.18718757,3654.2,3653.9,1.13544035]
[1736163908968,1.18718757,3654.0,3653.8,1.13544035]
[1736163909138,1.18718757,3654.0,3653.9,35.0]
[1736163910535,1.23178189,3654.0,3653.9,35.0]
[1736163915567,0.04459432,3654.0,3653.9,35.0]
[1736163915726,1.14559618,3654.1,3653.9,35.0]
[1736163916090,0.04454668,3654.0,3653.9,35.0]
[1736163917522,1.18718757,3654.2,3653.9,35.0]
[1736163917754,0.04438732,3654.0,3653.9,35.0]
[1736163918272,1.18718757,3654.2,3653.9,35.0]
[1736163918565,0.04443924,3654.1,3653.9,35.0]
[1736163918772,1.18718757,3654.2,3653.9,35.0]
[1736163918973,0.04438732,3654.0,3653.9,35.0]
[1736163919176,1.18718757,3654.2,3653.9,35.0]
[1736163919383,0.04438732,3654.0,3653.9,35.0]
[1736163919545,1.18718757,3654.2,3653.9,35.0]
[1736163920090,0.04443924,3654.1,3653.9,35.0]
[1736163920723,1.18718757,3654.0,3653.9,35.0]
[1736163921163,1.23006018,3654.0,3653.9,35.0]
[1736163921821,1.46762582,3654.0,3653.9,35.0]
[1736163922073,1.46762582,3654.0,3653.3,2.73723]
[1736163922365,1.18718757,3653.5,3653.3,2.73723]
[1736163922566,1.18718757,3653.5,3653.4,35.0]
[1736163924057,1.22969184,3653.5,3653.4,35.0]
[1736163926471,0.04250427,3653.5,3653.4,37.73717]
[1736163926769,1.14559618,3653.9,3653.4,2.73717]
[1736163926770,2.33278375,3653.9,3653.4,2.73717]
[1736163926932,1.18718757,3653.7,3653.4,2.73717]
[1736163927253,1.18718757,3653.7,3653.5,35.0]
[1736163927660,0.116,3653.8,3653.5,35.0]
[1736163927874,1.30318757,3653.8,3653.5,35.0]
[1736163928040,0.04260643,3653.7,3653.5,35.0]
[1736163928233,1.30318757,3653.8,3653.5,35.0]
[1736163928433,0.04260643,3653.7,3653.5,35.0]
[1736163928843,1.18718757,3653.6,3653.5,35.0]
[1736163930365,1.18718757,3653.6,3653.2,2.73725]
[1736163930765,0.04250256,3653.5,3653.2,2.73725]
[1736163930992,0.04250256,3653.5,3653.3,33.5]
[1736163931556,1.18718757,3653.6,3653.3,33.5]
[1736163931772,0.04245061,3653.4,3653.3,33.5]
[1736163931973,1.18718757,3653.6,3653.3,33.5]
[1736163932370,0.04247392,3653.5,3653.3,33.5]
[1736163937884,1.18718757,3653.4,3653.3,33.5]
[1736163940116,1.18718757,3653.4,3653.1,2.74237]
[1736163940317,0.116,3653.8,3653.1,2.74237]
[1736163940318,1.18718757,3653.2,3653.1,2.74237]
[1736163940519,0.116,3653.8,3653.1,0.005]
[1736163940520,0.0424059,3653.3,3653.1,0.005]
[1736163940680,1.18718757,3653.2,3653.1,0.005]
[1736163940879,1.18718757,3653.2,3653.1,35.005]
[1736163942413,1.18718757,3653.2,3653.1,0.005]
[1736163942777,1.22880053,3653.2,3653.1,35.005]
[1736163943177,1.18718757,3653.2,3653.1,35.005]
[1736163944319,1.22873905,3653.2,3653.1,35.005]
[1736163945539,1.18718757,3653.2,3653.1,35.005]
[1736163945847,1.18718757,3653.2,3653.1,0.005]
[1736163946006,1.57962333,3653.2,3653.1,0.005]
[1736163946341,2.80830804,3653.2,3653.1,0.005]
[1736163946506,2.41587228,3653.2,3653.1,0.005]
[1736163946839,1.22868471,3653.2,3653.1,0.005]
[1736163947003,0.04149714,3653.2,3653.1,0.005]
[1736163947532,1.22848164,3653.2,3653.1,0.005]
[1736163947725,1.76588942,3653.2,3653.1,0.005]
[1736163948017,0.15729407,3653.2,3653.1,0.005]
[1736163948605,0.116,3653.2,3653.1,0.005]
[1736163949433,1.30318757,3653.2,3653.1,0.005]
[1736163949984,1.34448164,3653.2,3653.1,35.005]
[1736163950325,1.30318757,3653.2,3653.1,35.005]
[1736163950967,1.30318757,3653.2,3653.1,0.005]
[1736163951287,1.34443307,3653.2,3653.1,0.005]
[1736163951709,1.30318757,3653.2,3653.1,0.005]
[1736163952939,1.34438595,3653.2,3653.1,0.005]
[1736163953325,1.55218578,3653.2,3653.1,0.005]
[1736163953633,1.59338053,3653.2,3653.1,0.005]
[1736163955049,4.33070053,3653.2,3653.1,0.005]
[1736163956534,2.73897671,3653.2,3653.1,0.005]
[1736163958057,1.59338053,3653.2,3653.1,0.005]
[1736163959364,1.59338053,3653.2,3653.1,35.005]
[1736163959514,0.40619296,3653.2,3653.1,0.005]
[1736163959915,2.73897671,3653.2,3653.1,0.005]
[1736163961250,2.62297671,3653.2,3653.1,0.005]
[1736163961454,1.59338053,3653.2,3653.1,0.005]
[1736163961868,1.47738053,3653.2,3653.1,0.005]
[1736163962020,0.15719475,3653.2,3653.1,0.005]
[1736163962548,0.04119475,3653.2,3653.1,0.005]
[1736163963069,0.116,3653.3,3653.1,0.005]
[1736163963248,0.04078966,3653.2,3653.1,0.005]
[1736163963622,0.116,3653.3,3653.1,0.005]
[1736163963819,0.04080958,3653.2,3653.1,0.005]
[1736163964252,0.116,3653.3,3653.1,0.005]
[1736163964420,0.04070195,3653.2,3653.1,0.005]
[1736163964621,0.116,3653.3,3653.1,0.005]
[1736163964923,0.04074493,3653.2,3653.1,0.005]
[1736163965138,0.116,3653.3,3653.1,0.005]
[1736163965359,0.04070716,3653.2,3653.1,0.005]
[1736163965540,0.04070716,3653.2,3653.1,3.5167]
[1736163965723,0.116,3653.5,3653.1,3.5167]
[1736163965923,0.0408851,3653.4,3653.1,3.5167]
[1736163968031,0.116,3653.5,3653.1,3.5167]
[1736163968532,0.04075173,3653.4,3653.2,3.51391]
[1736163969575,0.04075173,3653.4,3653.2,0.7766]
[1736163971679,0.04075173,3653.4,3653.1,0.005]
[1736163973029,0.55264438,3653.3,3653.1,0.005]
[1736163973324,0.04056097,3653.2,3653.1,0.005]
[1736163973732,0.55264438,3653.3,3653.1,0.005]
[1736163973963,0.04056097,3653.2,3653.1,0.005]
[1736163974256,0.55264438,3653.3,3653.1,0.005]
[1736163974397,0.75895423,3653.2,3653.1,0.005]
[1736163975894,3.39148629,3653.2,3653.1,0.005]
[1736163976248,6.12880629,3653.2,3653.1,0.005]
[1736163977200,8.39939182,3653.2,3653.1,0.005]
[1736163978174,11.39939182,3653.2,3653.1,0.005]
[1736163978957,12.55086771,3653.2,3653.1,0.005]
[1736163980269,9.67880629,3653.2,3653.1,0.005]
[1736163981417,6.39148629,3653.2,3653.1,0.005]
[1736163981543,3.50684782,3653.2,3653.1,0.005]
[1736163981941,4.05684782,3653.2,3653.1,0.005]
[1736163983077,5.77873437,3653.2,3653.1,0.005]
[1736163984075,4.05684782,3653.2,3653.1,0.005]
[1736163984276,6.79416782,3653.2,3653.1,0.005]
[1736163984575,9.79416782,3653.2,3653.1,0.005]
[1736163984744,9.93703925,3653.2,3653.1,0.005]
[1736163986087,2.73808,3652.2,3651.5,1.13544035]
[1736163986287,2.63253206,3651.9,3651.5,1.13544035]
[1736163986490,0.666,3651.8,3651.5,1.13544035]
[1736163986794,0.70477985,3651.8,3651.5,1.13544035]
[1736163987095,0.70477985,3651.8,3651.3,0.7634]
[1736163987592,0.70477985,3651.8,3651.4,35.0]
[1736163987948,0.666,3651.8,3651.4,35.0]
[1736163989105,0.55,3651.6,3651.4,35.0]
[1736163989451,0.03821011,3651.5,3651.4,35.0]
[1736163989681,0.58821011,3651.5,3651.4,35.0]
[1736163990353,0.55,3651.4,3651.0,0.7849]
[1736163990655,0.55,3651.4,3651.1,35.0]
[1736163990856,0.03814515,3651.3,3651.1,35.0]
[1736163991071,0.55,3651.5,3651.1,35.0]
[1736163991485,0.03811808,3651.4,3651.1,35.0]
[1736163991853,0.55,3651.5,3651.1,35.0]
[1736163992085,0.60369121,3651.5,3651.1,35.0]
[1736163992284,2.63253206,3651.3,3650.7,0.8095]
[1736163992552,0.03801373,3651.2,3650.7,0.8095]
[1736163992780,0.03801373,3651.2,3650.8,35.0]
[1736163993196,2.63253206,3651.3,3650.8,35.0]
[1736163993592,0.03782321,3651.2,3650.8,35.0]
[1736163994236,0.26703553,3651.2,3650.8,35.0]
[1736163994945,0.58766621,3651.1,3650.8,35.0]
[1736163995082,2.63253206,3651.0,3650.8,35.0]
[1736163995278,2.63253206,3651.0,3649.8,0.8024]
[1736163995528,2.63253206,3651.0,3649.8,3.5422]
[1736163995529,2.63253206,3650.7,3649.8,3.5422]
[1736163995741,0.666,3650.6,3649.9,35.0]
[1736163995927,0.03701405,3650.6,3649.9,35.0]
[1736163996225,0.55,3650.8,3650.0,2.73971]
[1736163996569,0.55,3650.8,3649.8,0.8024]
[1736163996707,0.15294775,3650.7,3650.0,2.73967]
[1736163996898,0.15294775,3650.7,3650.1,35.7885]
[1736163997094,0.55,3650.6,3650.1,35.7885]
[1736163997712,0.55,3650.4,3650.1,35.7885]
[1736163998042,0.116,3650.7,3650.1,38.52812]
[1736163998700,0.55,3650.6,3650.1,35.7885]
[1736163998885,0.94559568,3650.6,3650.1,35.7885]
[1736163999091,0.55,3650.4,3650.1,35.7885]
[1736163999390,0.116,3650.5,3650.1,35.7885]
[1736163999586,0.116,3650.5,3650.2,2.73957]
[1736163999791,0.03671546,3650.4,3650.2,2.73957]
[1736163999994,0.55,3650.4,3650.2,2.73957]
[1736164000403,2.29508498,3652.0,3650.4,0.7673]
[1736164000646,0.116,3651.6,3650.8,2.73907]
[1736164000821,0.116,3651.6,3650.9,3.50634]
[1736164001144,0.55,3651.4,3650.9,0.7673]
[1736164001347,0.03700215,3651.3,3651.0,35.0]
[1736164001540,0.55,3651.2,3651.0,35.0]
[1736164001867,0.55,3651.4,3651.0,35.0]
[1736164002019,1.190451,3651.4,3651.0,35.0]
[1736164002223,0.55,3651.2,3651.0,35.0]
[1736164002608,0.58686708,3651.1,3651.0,35.0]
[1736164002908,0.55,3651.1,3651.0,35.0]
[1736164007247,0.55,3651.0,3650.9,0.7673]
[1736164007451,0.116,3651.5,3650.9,0.7673]
[1736164007654,0.116,3651.5,3650.9,35.7673]
[1736164007655,0.03700581,3651.0,3650.9,35.7673]
[1736164007833,0.55,3651.4,3650.9,35.7673]
[1736164008212,0.55,3651.2,3650.9,35.7673]
[1736164008450,0.03716185,3651.3,3650.9,35.0]
[1736164008628,0.116,3651.5,3651.2,2.73882]
[1736164009108,0.55,3651.3,3650.6,0.8101]
[1736164009525,3.0,3651.7,3650.6,3.5493]
[1736164009526,0.55,3651.1,3650.6,3.5493]
[1736164009726,0.55,3650.9,3650.7,35.0]
[1736164009946,0.55,3650.9,3650.4,0.8251]
[1736164010332,0.55,3650.7,3650.4,0.8251]
[1736164010652,0.58696227,3650.6,3650.5,35.0]
[1736164011026,0.55,3650.6,3650.5,35.0]
[1736164011226,0.116,3651.0,3650.4,0.8251]
[1736164011446,0.55,3650.8,3650.4,0.8251]
[1736164011698,0.55,3650.8,3650.4,35.8251]
[1736164011899,0.55,3650.6,3650.4,35.0]
[1736164012258,0.55,3650.8,3650.4,35.0]
[1736164012685,0.55,3650.6,3650.4,35.0]
[1736164013209,0.55,3650.9,3650.4,35.0]
[1736164013674,0.03699924,3650.8,3650.4,35.0]
[1736164014715,0.03699924,3650.8,3650.2,2.73956]
[1736164014911,0.55,3650.7,3649.0,0.7989]
[1736164015215,0.55,3650.5,3649.9,0.7989]
[1736164015570,0.55,3650.3,3649.9,0.7989]
[1736164016293,0.55,3650.7,3650.0,2.73972]
[1736164016678,0.55,3650.5,3650.1,2.73964]
[1736164017070,3.55,3650.9,3650.1,2.73964]
[1736164017410,0.55,3650.7,3650.1,2.73964]
[1736164017769,2.85503,3651.0,3649.9,0.7989]
[1736164017770,0.116,3651.0,3650.2,2.73951]
[1736164018112,0.03685125,3650.9,3650.3,3.5618]
[1736164018312,0.55,3650.8,3650.4,35.0]
[1736164018467,0.666,3650.8,3650.4,35.0]
[1736164019134,0.03675446,3650.7,3650.4,35.0]
[1736164019504,0.666,3650.8,3650.4,35.0]
[1736164019903,0.03675446,3650.7,3650.4,35.0]
[1736164020287,0.99585321,3650.8,3650.4,35.0]
[1736164020620,0.55,3650.5,3650.4,35.0]
[1736164020824,0.55,3650.6,3650.4,35.0]
[1736164020987,0.03660054,3650.5,3650.4,35.0]
[1736164021317,0.55,3650.7,3650.4,35.0]
[1736164021520,0.58673084,3650.5,3650.4,35.0]
[1736164021715,0.55,3650.5,3650.4,35.0]
[1736164021903,0.58659168,3650.5,3650.4,35.0]
[1736164024379,0.55,3650.4,3650.0,2.73971]
[1736164024590,0.55,3650.2,3650.0,2.73971]
[1736164025022,0.116,3650.8,3650.0,2.73971]
[1736164025023,0.55,3650.7,3650.1,35.0]
[1736164025196,0.55,3650.7,3650.1,37.73964]